bitfinex/quotes_SOLUSD_20251024
["timestamp","ask_amount","ask_price","bid_price","bid_amount"]
[1761276869646,36.52216157,191.43,191.42,0.7]
[1761276869861,40.37018336,191.43,191.42,0.7]
[1761276870014,40.37018336,191.43,191.42,5.92411451]
[1761276870209,43.68078315,191.43,191.38,23.58]
[1761276870414,0.14216157,191.41,191.39,0.7]
[1761276870615,36.52216157,191.41,191.39,5.92493338]
[1761276870821,36.52216157,191.41,191.4,0.7]
[1761276871154,0.14216157,191.41,191.4,0.7]
[1761276872749,0.14216157,191.41,191.4,5.92466039]
[1761276873825,0.14216157,191.41,191.4,8.54526018]
[1761276874865,0.14216157,191.41,191.4,5.92466039]
[1761276876423,0.14216157,191.41,191.4,8.54526018]
[1761276877124,0.14216157,191.44,191.4,8.54526018]
[1761276877325,0.14216157,191.42,191.41,5.92438744]
[1761276880364,0.14216157,191.42,191.41,5.92438744]
[1761276882379,0.14216157,191.42,191.4,5.22466039]
[1761276882558,0.14216157,191.42,191.4,5.92466039]
[1761276882730,0.14216157,191.42,191.41,0.7]
[1761276883553,0.14216157,191.42,191.41,5.92438744]
[1761276885046,0.14216157,191.42,191.41,8.54498723]
[1761276885440,36.36,191.43,191.41,8.54498723]
[1761276885643,36.50216157,191.43,191.42,3.32059979]
[1761276886050,36.36,191.43,191.42,3.32059979]
[1761276887158,36.50216157,191.46,191.42,3.32059979]
[1761276887359,0.14216157,191.44,191.43,0.7]
[1761276887542,0.14216157,191.44,191.43,5.92384161]
[1761276887928,0.14216157,191.44,191.43,5.22384161]
[1761276888855,5.66607969,191.44,191.43,5.22384161]
[1761276889362,40.34817779,191.44,191.43,5.22384161]
[1761276889935,40.34817779,191.44,191.41,13.7609686]
[1761276890270,0.14216157,191.42,191.41,13.7609686]
[1761276890437,0.14216157,191.42,191.41,13.0609686]
[1761276890956,0.14216157,191.42,191.41,18.98535604]
[1761276893755,0.14216157,191.42,191.41,0.7]
[1761276893975,3.98832533,191.42,191.41,0.7]
[1761276894285,36.50216157,191.42,191.41,0.7]
[1761276894869,36.50216157,191.42,191.41,5.92438744]
[1761276897391,0.14216157,191.42,191.41,5.92438744]
[1761276897539,36.50216157,191.42,191.41,5.92438744]
[1761276899347,0.14216157,191.42,191.41,5.92438744]
[1761276899645,36.48216157,191.42,191.41,5.92438744]
[1761276902075,36.48216157,191.42,191.41,5.22438744]
[1761276902380,40.33109924,191.42,191.41,5.22438744]
[1761276903069,0.14216157,191.41,191.4,0.0523]
[1761276903564,3.99103836,191.41,191.4,0.0523]
[1761276903760,4.70103836,191.41,191.4,0.0523]
[1761276904674,3.99103836,191.41,191.4,0.0523]
[1761276905772,6.37894026,191.41,191.36,12.35805299]
[1761276906088,0.14216157,191.39,191.37,0.7]
[1761276906256,1.6779019,191.44,191.38,10.87647521]
[1761276906257,0.14216157,191.44,191.38,10.87647521]
[1761276906463,36.34,191.41,191.38,10.87647521]
[1761276906659,36.34,191.41,191.39,0.7]
[1761276906882,36.48216157,191.41,191.4,5.22466039]
[1761276907075,40.32759756,191.41,191.4,5.22466039]
[1761276908583,0.14216157,191.4,191.39,5.22493338]
[1761276908971,0.14216157,191.4,191.39,5.92493338]
[1761276909689,36.34,191.41,191.39,5.92493338]
[1761276909891,36.48216157,191.41,191.4,0.7]
[1761276910184,0.14216157,191.4,191.39,5.92493338]
[1761276915569,36.48216157,191.43,191.39,5.92493338]
[1761276915789,0.14216157,191.41,191.4,0.72]
[1761276915991,3.99215271,191.41,191.4,0.72]
[1761276916294,3.99215271,191.41,191.39,5.22493338]
[1761276916471,0.14216157,191.41,191.4,0.72]
[1761276916671,3.99201088,191.41,191.4,0.72]
[1761276916873,3.84984931,191.41,191.4,0.72]
[1761276917088,0.14216157,191.42,191.4,0.72]
[1761276917770,0.14216157,191.42,191.41,5.22438744]
[1761276917972,3.99241994,191.42,191.41,5.22438744]
[1761276918173,3.99241994,191.42,191.41,5.94438744]
[1761276921094,6.39032184,191.42,191.36,12.37805299]
[1761276921292,0.14216157,191.4,191.37,5.22547943]
[1761276921490,3.85025837,191.39,191.37,5.94547943]
[1761276921690,36.48216157,191.4,191.38,0.72]
[1761276922002,3.99272659,191.39,191.38,0.72]
[1761276922507,4.59272659,191.39,191.38,0.72]
[1761276922883,40.93272659,191.39,191.38,0.72]
[1761276923904,40.93272659,191.39,191.38,5.94520639]
[1761276926002,40.93272659,191.39,191.38,0.72]
[1761276926301,0.14216157,191.38,191.37,5.22545234]
[1761276927710,0.14216157,191.38,191.37,5.94545234]
[1761276928392,36.46216157,191.38,191.37,5.22545234]
[1761276933309,40.31019301,191.38,191.37,5.22545234]
[1761276933608,42.67809491,191.38,191.36,11.65805299]
[1761276933787,0.83216157,191.37,191.36,11.65805299]
[1761276933987,0.83216157,191.37,191.36,16.88380549]
[1761276934214,0.14216157,191.37,191.36,16.88380549]
[1761276934921,0.83216157,191.37,191.36,16.88380549]
[1761276935087,0.14216157,191.37,191.36,16.88380549]
[1761276938111,0.14216157,191.37,191.36,17.60380549]
[1761276938918,0.6,191.39,191.36,17.60380549]
[1761276939120,36.44216157,191.38,191.37,0.72]
[1761276939311,0.6,191.39,191.37,2.3979019]
[1761276939621,0.74216157,191.39,191.38,1.6779019]
[1761276939828,0.74216157,191.39,191.38,2.3979019]
[1761276940000,0.74216157,191.39,191.38,7.62310829]
[1761276940610,0.6,191.39,191.38,7.62310829]
[1761276944932,0.6,191.39,191.38,5.94520639]
[1761276946323,0.6,191.39,191.38,5.22520639]
[1761276946521,0.6,191.39,191.38,5.89520639]
[1761276948414,0.6,191.39,191.38,16.7716816]
[1761276948719,0.6,191.39,191.38,5.89520639]
[1761276948896,0.6,191.39,191.38,5.22520639]
[1761276950021,0.6,191.39,191.37,16.77195464]
[1761276950617,0.14216157,191.38,191.37,5.22547943]
[1761276951636,0.85216157,191.38,191.37,5.22547943]
[1761276952015,0.14216157,191.38,191.37,5.22547943]
[1761276953607,0.85216157,191.38,191.37,5.22547943]
[1761276954939,0.14216157,191.38,191.37,5.22547943]
[1761276958316,7.32839196,191.38,191.36,11.65805299]
[1761276958635,3.47454843,191.38,191.36,11.65805299]
[1761276959437,3.47454843,191.38,191.36,16.88364785]
[1761276959606,2.76454843,191.38,191.36,16.88364785]
[1761276959806,0.14216157,191.38,191.36,16.88364785]
[1761276960621,3.47454843,191.38,191.36,16.88364785]
[1761276961410,0.85216157,191.38,191.36,16.88364785]
[1761276962138,0.14216157,191.38,191.36,16.88364785]
[1761276962430,36.3,191.37,191.36,16.88364785]
[1761276962610,0.14216157,191.37,191.36,16.88364785]
[1761276962812,36.44216157,191.37,191.36,16.88364785]
[1761276963231,3.99628367,191.37,191.36,16.88364785]
[1761276963433,40.29628367,191.37,191.36,16.88364785]
[1761276964035,36.44216157,191.37,191.36,16.88364785]
[1761276964245,40.29564539,191.37,191.36,16.88364785]
[1761276965017,3.99564539,191.37,191.36,17.55364785]
[1761276965220,40.29564539,191.37,191.36,17.55364785]
[1761276966313,40.29564539,191.37,191.36,16.88364785]
[1761276966710,0.14216157,191.38,191.36,17.55364785]
[1761276967020,0.14216157,191.38,191.36,16.88364785]
[1761276967221,36.44216157,191.38,191.36,17.55364785]
[1761276967418,36.44216157,191.38,191.36,16.88364785]
[1761276967610,36.44216157,191.38,191.36,17.55364785]
[1761276969221,0.14216157,191.38,191.37,0.67]
[1761276969431,40.29779961,191.38,191.37,0.67]
[1761276969840,3.99779961,191.38,191.37,0.67]
[1761276970025,40.29779961,191.38,191.37,0.67]
[1761276970420,3.99779961,191.38,191.37,0.67]
[1761276970626,40.29779961,191.38,191.37,0.67]
[1761276970836,40.29779961,191.38,191.37,5.89547943]
[1761276971144,3.99779961,191.38,191.37,5.89547943]
[1761276972645,40.29779961,191.38,191.37,5.89547943]
[1761276972822,3.99779961,191.38,191.37,5.89547943]
[1761276973140,40.29779961,191.38,191.37,5.89547943]
[1761276974320,3.99779961,191.38,191.37,5.89547943]
[1761276974947,3.99779961,191.38,191.36,11.65805299]
[1761276974948,40.29779961,191.38,191.36,11.65805299]
[1761276975127,36.44216157,191.38,191.36,11.65805299]
[1761276975319,36.44216157,191.38,191.36,12.35805299]
[1761276975825,37.10216157,191.38,191.36,16.88371902]
[1761276976141,36.44216157,191.38,191.36,11.65805299]
[1761276976352,36.44216157,191.38,191.36,12.35805299]
[1761276976551,36.44216157,191.38,191.36,17.58375374]
[1761276976729,0.14216157,191.38,191.36,16.88375374]
[1761276976924,36.44216157,191.38,191.37,0.7]
[1761276977226,40.2950278,191.38,191.37,5.92547943]
[1761276977625,36.44216157,191.38,191.37,5.92547943]
[1761276979247,40.29466536,191.38,191.37,5.92547943]
[1761276979547,40.29455986,191.38,191.37,5.92547943]
[1761276979751,36.44216157,191.38,191.37,5.92547943]
[1761276979966,40.29456124,191.38,191.37,5.92547943]
[1761276980732,43.5769481,191.38,191.36,11.65805299]
[1761276981038,7.27713396,191.37,191.36,11.65805299]
[1761276982542,6.61713396,191.37,191.36,11.65805299]
[1761276983253,7.27713396,191.37,191.36,11.65805299]
[1761276983452,43.57713396,191.37,191.36,11.65805299]
[1761276984237,44.17713396,191.37,191.36,11.65805299]
[1761276985235,44.19713396,191.37,191.36,11.65805299]
[1761276985855,41.5747471,191.37,191.36,11.65805299]
[1761276986033,44.19713396,191.37,191.36,11.65805299]
[1761276986946,7.87713396,191.37,191.36,11.65805299]
[1761276987152,44.21713396,191.37,191.36,11.65805299]
[1761276988043,49.44261339,191.37,191.36,11.65805299]
[1761276988550,61.10066638,191.37,191.36,11.65805299]
[1761276991054,2.76454843,191.36,191.35,0.1]
[1761276991353,7.28986041,191.36,191.35,0.1]
[1761276991745,20.45878181,191.36,191.35,0.1]
[1761276992757,7.28986041,191.36,191.35,0.1]
[1761276996642,22.99132326,191.36,191.35,0.1]
[1761276997643,59.31132326,191.36,191.35,0.1]
[1761276998064,59.31132326,191.36,191.3,5.22712185]
[1761276998065,64.53707576,191.36,191.3,5.22712185]
[1761276998249,2.76454843,191.31,191.3,5.22712185]
[1761276998556,39.10454843,191.31,191.3,5.22712185]
[1761277000154,36.48216157,191.31,191.3,5.22712185]
[1761277000552,36.48216157,191.31,191.3,5.93712185]
[1761277001261,0.14216157,191.31,191.3,5.93712185]
[1761277001454,36.46216157,191.31,191.3,5.93712185]
[1761277002066,36.46216157,191.31,191.3,5.22712185]
[1761277003758,36.46216157,191.31,191.3,5.93712185]
[1761277009271,36.44216157,191.31,191.3,5.93712185]
[1761277016869,36.44216157,191.31,191.3,5.22712185]
[1761277018285,36.44216157,191.31,191.3,5.93712185]
[1761277018785,0.14216157,191.3,191.29,0.1]
[1761277019083,0.14216157,191.3,191.29,0.81]
[1761277020483,0.14216157,191.3,191.29,6.0376648]
[1761277024806,0.71,191.33,191.29,6.0376648]
[1761277024807,0.71,191.33,191.29,7.71763049]
[1761277024970,40.85809936,191.32,191.29,6.0376648]
[1761277025169,3.84809936,191.31,191.29,6.0376648]
[1761277025370,3.84809936,191.3,191.29,6.0376648]
[1761277025907,3.85275866,191.3,191.29,6.0376648]
[1761277026909,3.85275866,191.3,191.29,7.71763049]
[1761277027072,36.3,191.31,191.29,7.71763049]
[1761277027278,36.44216157,191.31,191.3,0.71]
[1761277027479,40.2977262,191.31,191.3,0.71]
[1761277027698,15.70146285,191.35,191.3,2.38996569]
[1761277027998,12.15164332,191.38,191.3,2.38996569]
[1761277027999,3.85565126,191.34,191.33,6.90653758]
[1761277028367,3.85565126,191.34,191.33,7.61653758]
[1761277029676,3.85565126,191.34,191.33,5.93657189]
[1761277030487,3.85565126,191.34,191.33,7.61653758]
[1761277030690,3.85565126,191.34,191.33,5.93657189]
[1761277030691,3.99781283,191.34,191.33,5.93657189]
[1761277031998,3.99781283,191.34,191.33,7.61653758]
[1761277032204,3.99781283,191.34,191.33,5.93657189]
[1761277032205,40.15565126,191.34,191.33,5.93657189]
[1761277032524,40.29821883,191.34,191.33,5.93657189]
[1761277033988,3.99821883,191.34,191.33,5.93657189]
[1761277035681,3.85605726,191.34,191.33,7.61653758]
[1761277035883,36.3,191.35,191.33,7.61653758]
[1761277036080,0.14216157,191.35,191.34,0.66]
[1761277036275,3.99672039,191.35,191.34,0.66]
[1761277037514,3.99672039,191.35,191.34,2.33996569]
[1761277037680,3.99672039,191.35,191.34,7.56626442]
[1761277041309,0.14216157,191.35,191.34,7.56626442]
[1761277042694,0.14216157,191.35,191.34,5.88629873]
[1761277042897,0.14216157,191.35,191.34,7.56626442]
[1761277043504,0.14216157,191.35,191.34,5.88629873]
[1761277045211,0.14216157,191.35,191.34,7.56626442]
[1761277047595,0.14216157,191.35,191.34,6.70588902]
[1761277049504,0.14216157,191.35,191.34,7.36588902]
[1761277051205,0.14216157,191.35,191.34,6.70588902]
[1761277051802,0.14216157,191.35,191.34,7.36588902]
[1761277053119,0.14216157,191.35,191.34,5.68592333]
[1761277053300,36.3,191.37,191.34,7.36588902]
[1761277053498,3.99302767,191.36,191.34,7.36588902]
[1761277053698,0.14216157,191.36,191.34,7.36588902]
[1761277054426,0.14216157,191.36,191.34,20.43163585]
[1761277058797,0.14216157,191.36,191.34,18.75167016]
[1761277058998,0.14216157,191.36,191.34,20.43163585]
[1761277061798,0.14216157,191.36,191.34,18.75167016]
[1761277062098,0.14216157,191.36,191.34,20.43163585]
[1761277062920,0.14216157,191.36,191.34,18.75167016]
[1761277064697,0.14216157,191.36,191.34,20.43163585]
[1761277065927,0.14216157,191.36,191.34,19.77163585]
[1761277066112,0.14216157,191.36,191.35,5.9360256]
[1761277066299,3.99705449,191.36,191.35,5.9360256]
[1761277067322,3.99705449,191.36,191.35,5.2260256]
[1761277068125,3.99705449,191.36,191.34,18.29204556]
[1761277068318,3.85651511,191.35,191.34,20.68201125]
[1761277069324,3.85651511,191.35,191.34,31.55848646]
[1761277070722,3.85651511,191.35,191.34,32.50183863]
[1761277073833,3.85651511,191.35,191.34,19.00204556]
[1761277074131,3.85651511,191.35,191.33,11.58647521]
[1761277074336,0.14216157,191.36,191.33,11.58647521]
[1761277074513,3.86327715,191.35,191.33,11.58647521]
[1761277074709,0.83216157,191.36,191.33,11.58647521]
[1761277075012,3.86327745,191.35,191.33,14.20979307]
[1761277075214,0.83216157,191.36,191.34,5.22629873]
[1761277075417,3.86351624,191.35,191.34,5.22629873]
[1761277076548,3.86351624,191.35,191.34,7.84961659]
[1761277076835,3.86351624,191.35,191.34,8.55961659]
[1761277077551,3.86351624,191.35,191.34,7.84961659]
[1761277077738,3.86351624,191.35,191.34,8.55961659]
[1761277077943,3.86351624,191.35,191.34,7.84961659]
[1761277078153,3.86351624,191.35,191.34,5.22629873]
[1761277078638,3.86351624,191.35,191.34,3.33331786]
[1761277079345,3.86401488,191.35,191.34,3.33331786]
[1761277080646,3.86401488,191.35,191.34,19.4360918]
[1761277080833,47.72164332,191.38,191.35,10.87647521]
[1761277081139,4.55428239,191.37,191.35,13.49979307]
[1761277081313,3.86428239,191.36,191.35,13.49979307]
[1761277082249,3.86428239,191.36,191.35,16.10250081]
[1761277082450,3.86428239,191.36,191.35,18.72581867]
[1761277083323,3.86428239,191.36,191.35,19.43581867]
[1761277083730,3.86428239,191.36,191.35,18.72581867]
[1761277085245,3.86428239,191.36,191.35,19.43581867]
[1761277085545,11.44164332,191.38,191.35,32.50088268]
[1761277085731,3.86274362,191.37,191.36,11.58647521]
[1761277086048,3.86274362,191.37,191.36,14.20979307]
[1761277086861,3.86274362,191.37,191.36,19.43554557]
[1761277087345,0.14216157,191.39,191.36,32.49992684]
[1761277087560,0.14216157,191.39,191.37,2.62331786]
[1761277087561,3.86124925,191.38,191.37,2.62331786]
[1761277088247,3.86146066,191.38,191.37,2.62331786]
[1761277088852,3.86146066,191.38,191.37,19.4352725]
[1761277089057,122.93446907,191.49,191.38,10.87647521]
[1761277089253,0.69,191.43,191.41,2.62331786]
[1761277089442,4.00385973,191.42,191.41,2.62331786]
[1761277090455,4.00385973,191.42,191.41,7.8477053]
[1761277093065,4.00385973,191.42,191.41,5.22438744]
[1761277093447,4.67385973,191.42,191.41,5.22438744]
[1761277095558,0.14216157,191.41,191.39,18.2869563]
[1761277095753,4.00385973,191.4,191.39,18.2869563]
[1761277098063,4.00385973,191.4,191.39,13.06202292]
[1761277098361,4.67385973,191.4,191.39,13.06202292]
[1761277098741,4.00385973,191.4,191.39,13.06202292]
[1761277100079,4.00385973,191.4,191.39,18.2869563]
[1761277105266,0.14216157,191.4,191.39,18.2869563]
[1761277106862,0.14216157,191.4,191.39,20.91027416]
[1761277108254,15.69407025,191.43,191.39,32.45674937]
[1761277108458,0.72,191.45,191.42,2.62331786]
[1761277108657,0.14216157,191.44,191.42,2.62331786]
[1761277108874,0.14216157,191.44,191.41,2.62331786]
[1761277109052,0.86216157,191.44,191.41,2.62331786]
[1761277109256,0.72,191.44,191.41,3.29331786]
[1761277109985,0.72,191.44,191.42,2.62331786]
[1761277110157,3.34331786,191.44,191.4,15.69078689]
[1761277110353,0.14216157,191.42,191.37,2.62331786]
[1761277110554,0.14216157,191.4,191.36,16.10222771]
[1761277110962,0.72,191.39,191.36,16.10222771]
[1761277111275,0.72,191.39,191.36,5.2257525]
[1761277111655,0.72,191.39,191.36,16.10222771]
[1761277111865,0.72,191.39,191.36,31.78992684]
[1761277113481,0.72,191.39,191.36,29.16660898]
[1761277113657,0.72,191.39,191.36,31.78992684]
[1761277114881,0.72,191.39,191.36,21.58345163]
[1761277115180,0.72,191.39,191.36,13.06438127]
[1761277115378,0.72,191.39,191.36,15.68769913]
[1761277116465,0.72,191.39,191.36,20.91345163]
[1761277117981,2.76547943,191.38,191.36,5.2257525]
[1761277118164,2.76547943,191.37,191.36,5.2257525]
[1761277118367,2.76547943,191.37,191.34,5.22629873]
[1761277118368,0.14216157,191.35,191.34,5.22629873]
[1761277118771,0.86216157,191.35,191.34,5.22629873]
[1761277119364,43.59580803,191.35,191.34,5.22629873]
[1761277120066,43.59580803,191.35,191.3,20.91869607]
[1761277120276,0.14216157,191.33,191.31,15.69981945]
[1761277120778,0.86216157,191.33,191.3,20.91869607]
[1761277120986,0.86216157,191.33,191.3,36.61933717]
[1761277121670,0.14216157,191.33,191.3,21.63869607]
[1761277121983,0.14216157,191.33,191.32,5.22684507]
[1761277122384,0.14216157,191.34,191.32,5.22684507]
[1761277122566,0.84216157,191.33,191.32,5.22684507]
[1761277122971,0.14216157,191.33,191.32,5.22684507]
[1761277125487,0.14216157,191.33,191.31,15.69981945]
[1761277125488,0.84216157,191.33,191.31,15.69981945]
[1761277125665,0.84216157,191.33,191.3,10.87647521]
[1761277126063,0.14216157,191.33,191.3,14.21979307]
[1761277126262,0.14216157,191.33,191.31,2.62331786]
[1761277127372,0.14216157,191.33,191.32,5.22684507]
[1761277127880,0.84216157,191.33,191.32,5.22684507]
[1761277129673,0.14216157,191.32,191.3,5.22739153]
[1761277130966,0.84216157,191.32,191.3,5.22739153]
[1761277135997,0.84216157,191.32,191.3,6.90719948]
[1761277136192,0.84216157,191.32,191.3,5.22739153]
[1761277137392,37.10216157,191.32,191.3,5.22739153]
[1761277137881,0.84216157,191.31,191.3,5.22739153]
[1761277141706,0.84216157,191.31,191.29,0.1]
[1761277141995,43.60401529,191.3,191.21,5.32981661]
[1761277142198,0.14216157,191.28,191.21,5.32981661]
[1761277142408,3.83998052,191.29,191.21,5.32981661]
[1761277142409,0.14216157,191.26,191.21,0.1]
[1761277142700,3.98214209,191.26,191.21,5.32983115]
[1761277142882,0.14216157,191.24,191.21,5.32983115]
[1761277143078,0.14216157,191.22,191.21,5.32983115]
[1761277143271,3.83436913,191.22,191.16,0.1]
[1761277143475,22.88,191.27,191.19,1.67980795]
[1761277143476,36.48216157,191.23,191.19,1.67980795]
[1761277143672,0.14216157,191.23,191.2,1.67980795]
[1761277143874,2.09451498,191.23,191.22,1.67980795]
[1761277144092,36.34,191.24,191.22,1.67980795]
[1761277144276,36.48216157,191.24,191.23,0.72]
[1761277144601,36.48216157,191.24,191.21,5.22985199]
[1761277144602,0.14216157,191.23,191.21,5.22985199]
[1761277144893,0.84216157,191.23,191.21,5.22985199]
[1761277145304,0.84216157,191.23,191.19,7.63008063]
[1761277145603,36.52216157,191.23,191.2,2.39980795]
[1761277145780,36.52216157,191.23,191.2,7.62972532]
[1761277146302,36.52216157,191.23,191.2,5.94991737]
[1761277147388,0.14216157,191.21,191.2,5.94991737]
[1761277149182,0.14216157,191.21,191.2,5.22991737]
[1761277151502,0.14216157,191.21,191.18,5.23067266]
[1761277151889,0.14216157,191.21,191.18,18.98735432]
[1761277152207,0.14216157,191.21,191.18,20.66716227]
[1761277152626,0.14216157,191.21,191.19,2.35980795]
[1761277153085,0.14216157,191.21,191.19,0.68]
[1761277153287,0.14216157,191.21,191.2,5.23012552]
[1761277158722,0.79216157,191.21,191.19,5.23039907]
[1761277159013,0.14216157,191.21,191.19,5.23039907]
[1761277160015,0.14216157,191.21,191.18,19.98716227]
[1761277160191,0.14216157,191.21,191.19,1.67980795]
[1761277160511,0.14216157,191.21,191.2,1.67980795]
[1761277160810,0.14216157,191.21,191.19,2.35980795]
[1761277161313,0.14216157,191.21,191.2,5.23012552]
[1761277162215,0.79216157,191.21,191.19,5.23039907]
[1761277162418,0.14216157,191.21,191.19,5.23039907]
[1761277162625,0.14216157,191.21,191.19,7.59020702]
[1761277163016,0.14216157,191.21,191.19,5.91039907]
[1761277163193,0.14216157,191.21,191.19,7.59020702]
[1761277165212,0.14216157,191.21,191.19,5.91039907]
[1761277165625,0.79216157,191.21,191.18,18.30735432]
[1761277165811,0.79216157,191.21,191.18,19.98716227]
[1761277166424,0.14216157,191.21,191.18,19.98716227]
[1761277166900,0.14216157,191.21,191.2,5.23012552]
[1761277167421,0.14216157,191.21,191.2,6.90993347]
[1761277167606,0.14216157,191.21,191.2,7.56993347]
[1761277167994,0.14216157,191.21,191.2,5.23012552]
[1761277168216,0.84216157,191.21,191.2,5.23012552]
[1761277168621,2.52196952,191.21,191.16,0.1]
[1761277168796,1.67980795,191.2,191.16,0.1]
[1761277169115,0.14216157,191.18,191.17,5.23094627]
[1761277169729,0.84216157,191.18,191.17,5.23094627]
[1761277171823,0.84216157,191.18,191.16,5.33117137]
[1761277172010,0.14216157,191.18,191.16,5.99117137]
[1761277172218,0.14216157,191.2,191.17,0.66]
[1761277172424,0.5,191.22,191.18,1.67980795]
[1761277172716,36.50216157,191.21,191.18,1.67980795]
[1761277173016,36.36,191.21,191.2,5.23012552]
[1761277173222,36.50216157,191.21,191.2,5.23012552]
[1761277176209,36.50216157,191.21,191.2,5.89012552]
[1761277176603,0.5,191.22,191.2,7.56993347]
[1761277176825,0.5,191.22,191.21,2.33980795]
[1761277176826,0.64216157,191.22,191.21,2.33980795]
[1761277177605,0.64216157,191.22,191.21,7.56965994]
[1761277181537,0.5,191.22,191.21,7.56965994]
[1761277183126,0.14216157,191.23,191.21,7.56965994]
[1761277183431,0.14216157,191.23,191.22,1.67980795]
[1761277183622,0.14216157,191.23,191.22,7.61938644]
[1761277184226,0.14216157,191.23,191.22,5.93957849]
[1761277184432,0.14216157,191.23,191.22,7.61938644]
[1761277184737,0.14216157,191.23,191.22,6.90938644]
[1761277185123,0.14216157,191.23,191.22,7.61938644]
[1761277185523,0.14216157,191.23,191.22,6.90938644]
[1761277186431,3.9959806,191.23,191.22,6.90938644]
[1761277186738,3.9959806,191.23,191.22,7.61938644]
[1761277188120,3.9959806,191.23,191.22,5.93957849]
[1761277188321,3.9959806,191.23,191.22,7.61938644]
[1761277188944,3.9959806,191.23,191.22,6.90938644]
[1761277189529,4.4959806,191.23,191.22,6.90938644]
[1761277191023,4.4959806,191.23,191.22,7.61938644]
[1761277191425,3.9959806,191.23,191.22,7.61938644]
[1761277192834,3.9959806,191.23,191.22,8.56598066]
[1761277193725,3.9959806,191.23,191.22,7.85598066]
[1761277193927,3.9959806,191.23,191.22,5.22957849]
[1761277194846,4.4959806,191.23,191.22,5.22957849]
[1761277195845,4.4959806,191.23,191.22,5.93957849]
[1761277196344,4.4959806,191.23,191.22,5.22957849]
[1761277196741,4.35381903,191.23,191.22,3.33640217]
[1761277196939,4.4959806,191.23,191.22,3.33640217]
[1761277198043,4.4959806,191.23,191.22,5.93957849]
[1761277198234,4.4959806,191.23,191.22,8.56598066]
[1761277199443,0.14216157,191.22,191.21,5.22983185]
[1761277199635,3.9959806,191.22,191.21,5.22983185]
[1761277199946,3.9959806,191.22,191.21,8.56623402]
[1761277200353,0.64216157,191.23,191.21,8.56623402]
[1761277200645,0.64216157,191.23,191.22,3.33640217]
[1761277200844,4.49005584,191.23,191.22,3.33640217]
[1761277202145,4.4894036,191.23,191.22,8.56598066]
[1761277202344,4.34724203,191.23,191.22,19.44245587]
[1761277202547,36.36,191.28,191.23,10.87647521]
[1761277202755,3.84490351,191.27,191.26,2.62640217]
[1761277203135,3.84490351,191.27,191.26,3.33640217]
[1761277203639,36.36,191.31,191.26,14.21287738]
[1761277203826,3.8466727,191.3,191.29,2.62640217]
[1761277204027,3.98883427,191.3,191.29,2.62640217]
[1761277204251,0.14216157,191.3,191.29,8.56406697]
[1761277204454,36.36,191.31,191.29,8.56406697]
[1761277204652,0.65,191.35,191.3,3.33640217]
[1761277204840,40.20447839,191.34,191.31,2.62640217]
[1761277205040,3.84447839,191.33,191.3,2.62640217]
[1761277205239,3.98663996,191.32,191.3,2.62640217]
[1761277205438,0.65,191.33,191.3,2.62640217]
[1761277205643,3.84126764,191.32,191.3,2.62640217]
[1761277205940,0.65,191.33,191.3,2.62640217]
[1761277206253,3.98234587,191.32,191.31,5.22711828]
[1761277207037,0.14216157,191.32,191.31,5.22711828]
[1761277207237,3.98234587,191.32,191.31,8.56352045]
[1761277207442,0.14216157,191.32,191.31,8.56352045]
[1761277207627,3.98234587,191.32,191.31,8.56352045]
[1761277208035,0.14216157,191.37,191.31,29.88138921]
[1761277208236,0.14216157,191.35,191.33,2.62640217]
[1761277208861,0.14216157,191.35,191.33,3.33640217]
[1761277210263,0.14216157,191.35,191.34,5.22629873]
[1761277211044,0.14216157,191.35,191.34,5.94629873]
[1761277211859,0.14216157,191.35,191.34,8.5727009]
[1761277212163,0.14216157,191.35,191.34,5.22629873]
[1761277212676,0.14216157,191.35,191.33,7.85297406]
[1761277212865,0.14216157,191.35,191.33,8.57297406]
[1761277213450,0.14216157,191.35,191.33,5.94657189]
[1761277214264,0.14216157,191.33,191.31,5.22702897]
[1761277214462,0.14216157,191.31,191.28,13.06974607]
[1761277214652,0.14216157,191.31,191.28,18.29768417]
[1761277214851,0.82216157,191.31,191.28,18.29768417]
[1761277215267,0.14216157,191.31,191.28,19.01768417]
[1761277215447,0.14216157,191.31,191.28,21.64408634]
[1761277215648,0.14216157,191.31,191.28,20.92408634]
[1761277215855,0.14216157,191.31,191.3,5.22739153]
[1761277216665,36.34,191.32,191.3,5.22739153]
[1761277216864,0.14216157,191.31,191.3,7.8537937]
[1761277217073,0.14216157,191.32,191.3,20.92227252]
[1761277217278,0.14216157,191.32,191.31,2.62640217]
[1761277217443,0.14216157,191.32,191.31,3.34640217]
[1761277217970,0.14216157,191.32,191.31,8.57352045]
[1761277218269,0.14216157,191.32,191.31,5.22711828]
[1761277219068,0.14216157,191.32,191.31,8.57352045]
[1761277220152,36.34,191.33,191.31,8.57352045]
[1761277220469,36.48216157,191.33,191.32,3.34640217]
[1761277220684,0.68,191.38,191.32,3.34640217]